fUSD/lending_fUSD_20250806
["ID","MTS","AMOUNT","RATE_DAILY","PERIOD"]
[377552181,1754441457378,-555.36,0.00035616,14]
[377552182,1754441457388,-400.0,0.00035616,14]
[377552183,1754441457398,-555.36,0.00035616,14]
[377552184,1754441457425,-1770.16,0.00035616,14]
[377552185,1754441457438,-555.36,0.00035616,14]
[377552186,1754441457450,-400.0,0.00035616,120]
[377552187,1754441457461,-555.36,0.00035616,14]
[377552188,1754441457471,-1787.59,0.00035616,14]
[377552189,1754441457483,-555.36,0.00035616,14]
[377552190,1754441457497,-1801.46,0.00035616,14]
[377552191,1754441457508,-555.36,0.00035616,14]
[377552192,1754441457519,-555.36,0.00035616,14]
[377552193,1754441457530,-437.99,0.00035616,14]
[377552194,1754441457541,-1066.27,0.00035616,14]
[377552195,1754441457554,-555.36,0.00035616,14]
[377552196,1754441457565,-555.36,0.00035616,14]
[377552197,1754441457577,-555.36,0.00035616,14]
[377552198,1754441457587,-555.36,0.00035616,14]
[377552199,1754441457598,-555.36,0.00035616,14]
[377552200,1754441457609,-555.36,0.00035616,14]
[377552201,1754441457620,-555.36,0.00035616,14]
[377552202,1754441457631,-555.36,0.00035616,14]
[377552203,1754441457642,-555.36,0.00035616,14]
[377552204,1754441457654,-555.36,0.00035616,14]
[377552205,1754441457665,-555.36,0.00035616,14]
[377552206,1754441457675,-400.0,0.00035616,14]
[377552207,1754441457685,-2492.4,0.00035616,14]
[377552208,1754441457695,-555.36,0.00035616,14]
[377552209,1754441457706,-555.36,0.00035616,14]
[377552210,1754441457717,-555.45,0.00035616,14]
[377552211,1754441457727,-400.0,0.00035616,14]
[377552212,1754441457738,-400.0,0.00035616,14]
[377552213,1754441457748,-400.0,0.00035616,14]
[377552214,1754441457758,-400.0,0.00035616,14]
[377552215,1754441457769,-468.2,0.00035616,14]
[377552216,1754441457779,-2073.16,0.00035616,14]
[377552217,1754441457790,-1921.79,0.00035616,14]
[377552218,1754441457802,-400.0,0.00035616,14]
[377552219,1754441457813,-416.61,0.00035616,14]
[377552220,1754441457823,-1958.65,0.00035616,14]
[377552221,1754441457834,-400.0,0.00035616,14]
[377552222,1754441457853,-400.0,0.00035616,14]
[377552223,1754441457865,-1952.38,0.00035616,14]
[377552224,1754441457875,-658.52,0.00035616,14]
[377552225,1754441457886,-400.0,0.00035616,14]
[377552226,1754441457898,-3474.01,0.00035616,14]
[377552227,1754441457909,-400.0,0.00035616,14]
[377552228,1754441457920,-2017.97,0.00035616,14]
[377552229,1754441457932,-400.0,0.00035616,14]
[377552230,1754441457943,-646.52,0.00035616,14]
[377552231,1754441457955,-400.0,0.00035616,14]
[377552232,1754441457967,-400.0,0.00035616,14]
[377552233,1754441457979,-400.0,0.00035616,14]
[377552234,1754441457991,-400.0,0.00035616,14]
[377552235,1754441458003,-403.29,0.00035616,14]
[377552236,1754441458014,-400.0,0.00035616,14]
[377552237,1754441458026,-400.0,0.00035616,14]
[377552238,1754441458038,-400.0,0.00035616,14]
[377552239,1754441458053,-1100.86,0.00035616,14]
[377552240,1754441458064,-400.0,0.00035616,14]
[377552241,1754441458075,-400.0,0.00035616,14]
[377552242,1754441458086,-216.06410133,0.00035616,14]
[377552243,1754441458097,-2521.13,0.00035616,14]
[377552244,1754441458109,-1458.82,0.00035616,14]
[377552245,1754441458120,-400.0,0.00035616,14]
[377552246,1754441458132,-400.0,0.00035616,14]
[377552247,1754441458143,-400.0,0.00035616,14]
[377552248,1754441458154,-2033.38,0.00035616,14]
[377552249,1754441458165,-400.0,0.00035616,14]
[377552250,1754441458176,-575.31,0.00035616,14]
[377552251,1754441458187,-1917.47,0.00035616,14]
[377552252,1754441458198,-513.4,0.00035616,14]
[377552253,1754441458209,-1895.37,0.00035616,14]
[377552254,1754441458221,-2012.98,0.00035616,14]
[377552255,1754441458232,-400.0,0.00035616,14]
[377552256,1754441458243,-400.0,0.00035616,14]
[377552257,1754441458254,-523.54,0.00035616,14]
[377552258,1754441458265,-400.0,0.00035616,14]
[377552259,1754441458275,-688.28,0.00035616,14]
[377552260,1754441458298,-400.0,0.00035616,14]
[377552261,1754441458310,-2389.58,0.00035616,14]
[377552262,1754441458322,-2160.95,0.00035616,14]
[377552263,1754441458334,-400.0,0.00035616,14]
[377552264,1754441458346,-400.0,0.00035616,14]
[377552265,1754441458357,-2240.08,0.00035616,14]
[377552266,1754441458368,-1549.07,0.00035616,14]
[377552267,1754441458379,-541.65,0.00035616,14]
[377552268,1754441458391,-472.55,0.00035616,14]
[377552269,1754441458402,-1389.33,0.00035616,14]
[377552270,1754441458413,-500.0,0.00035616,14]
[377552271,1754441458425,-400.0,0.00035616,14]
[377552272,1754441458435,-1994.62,0.00035616,14]
[377552273,1754441458446,-400.0,0.00035616,14]
[377552274,1754441458457,-400.0,0.00035616,14]
[377552275,1754441458468,-400.0,0.00035616,14]
[377552276,1754441458478,-400.0,0.00035616,14]
[377552277,1754441458489,-370.000001,0.00035616,2]
[377552278,1754441458503,-400.0,0.00035616,14]
[377552279,1754441458514,-408.36745785,0.00035616,14]
[377552280,1754441458524,-400.0,0.00035616,14]
[377552281,1754441458536,-500.0,0.00035616,14]
[377552282,1754441458548,-500.0,0.00035616,14]
[377552283,1754441458560,-400.0,0.00035616,14]
[377552284,1754441458571,-400.0,0.00035616,14]
[377552285,1754441458582,-500.0,0.00035616,14]
[377552286,1754441458593,-500.0,0.00035616,14]
[377552287,1754441458604,-400.0,0.00035616,14]
[377552288,1754441458615,-500.0,0.00035616,14]
[377552289,1754441458626,-500.0,0.00035616,14]
[377552290,1754441458637,-500.0,0.00035616,14]
[377552291,1754441458648,-400.0,0.00035616,14]
[377552292,1754441458659,-400.0,0.00035616,14]
[377552293,1754441458670,-1144.5,0.00035616,14]
[377552294,1754441458683,-400.0,0.00035616,14]
[377552295,1754441458695,-400.0,0.00035616,14]
[377552296,1754441458708,-771.87,0.00035616,14]
[377552297,1754441458720,-500.0,0.00035616,14]
[377552298,1754441458731,-1161.31,0.00035616,14]
[377552299,1754441458741,-429.96,0.00035616,14]
[377552300,1754441458753,-500.0,0.00035616,14]
[377552301,1754441458765,-500.0,0.00035616,14]
[377552302,1754441458777,-400.0,0.00035616,14]
[377552303,1754441458790,-4587.46,0.00035616,14]
[377552304,1754441458803,-591.90407381,0.00035616,14]
[377552305,1754441458814,-400.0,0.00035616,14]
[377552306,1754441458824,-400.0,0.00035616,14]
[377552307,1754441458836,-500.0,0.00035616,14]
[377552308,1754441458849,-1757.75,0.00035616,14]
[377552309,1754441458862,-1657.2,0.00035616,14]
[377552310,1754441458874,-400.0,0.00035616,14]
[377552311,1754441458891,-1893.76,0.00035616,14]
[377552312,1754441458903,-2031.11,0.00035616,14]
[377552313,1754441458914,-1477.33,0.00035616,14]
[377552314,1754441458926,-1102.74,0.00035616,14]
[377552315,1754441458938,-501.07,0.00035616,14]
[377552316,1754441458949,-400.0,0.00035616,14]
[377552317,1754441458960,-630.85,0.00035616,14]
[377552318,1754441458971,-952.88,0.00035616,14]
[377552319,1754441458982,-400.0,0.00035616,14]
[377552320,1754441458996,-519.23,0.00035616,14]
[377552321,1754441459008,-925.31,0.00035616,14]
[377552322,1754441459020,-1894.4,0.00035616,14]
[377552323,1754441459030,-400.0,0.00035616,14]
[377552324,1754441459042,-1255.85,0.00035616,14]
[377552325,1754441459056,-2587.56,0.00035616,14]
[377552326,1754441459066,-400.0,0.00035616,14]
[377552327,1754441459077,-400.0,0.00035616,14]
[377552328,1754441459088,-4316.85,0.00035616,14]
[377552329,1754441459099,-400.0,0.00035616,14]
[377552330,1754441459110,-1100.3,0.00035616,14]
[377552331,1754441459121,-497.31,0.00035616,14]
[377552332,1754441459131,-904.54,0.00035616,14]
[377552333,1754441459142,-2053.44,0.00035616,14]
[377552334,1754441459153,-400.0,0.00035616,14]
[377552335,1754441459164,-1448.21,0.00035616,14]
[377552336,1754441459174,-400.0,0.00035616,14]
[377552337,1754441459185,-462.19,0.00035616,14]
[377552338,1754441459195,-400.0,0.00035616,14]
[377552339,1754441459205,-1080.14,0.00035616,14]
[377552340,1754441459216,-1158.46,0.00035616,14]
[377552341,1754441459226,-400.0,0.00035616,14]
[377552342,1754441459483,-977.25,0.00035616,14]
[377552343,1754441459496,-1193.11,0.00035616,14]
[377552344,1754441459508,-2207.72,0.00035616,14]
[377552345,1754441459518,-707.07,0.00035616,14]
[377552346,1754441459527,-881.35,0.00035616,14]
[377552347,1754441459537,-400.0,0.00035616,14]
[377552348,1754441459548,-2430.29,0.00035616,14]
[377552349,1754441459558,-400.0,0.00035616,14]
[377552350,1754441459568,-400.0,0.00035616,14]
[377552351,1754441459578,-922.84,0.00035616,14]
[377552352,1754441459588,-493.51,0.00035616,14]
[377552353,1754441459599,-1878.77,0.00035616,14]
[377552354,1754441459608,-436.62,0.00035616,14]
[377552355,1754441459619,-903.37,0.00035616,14]
[377552356,1754441459630,-500.0,0.00035616,10]
[377552357,1754441459641,-2236.89,0.00035616,14]
[377552358,1754441459653,-740.92,0.00035616,14]
[377552359,1754441459662,-400.0,0.00035616,14]
[377552360,1754441459673,-825.0,0.00035616,14]
[377552361,1754441459686,-526.04,0.00035616,14]
[377552362,1754441459697,-439.13,0.00035616,14]
[377552363,1754441459706,-2520.4,0.00035616,14]
[377552364,1754441459716,-549.73,0.00035616,14]
[377552365,1754441459725,-1499.23,0.00035616,14]
[377552366,1754441459735,-400.0,0.00035616,14]
[377552367,1754441459745,-402.89491145,0.00035616,14]
[377552368,1754441459754,-4089.12,0.00035616,14]
[377552369,1754441459763,-400.0,0.00035616,14]
[377552370,1754441459773,-400.0,0.00035616,14]
[377552371,1754441459785,-400.0,0.00035616,14]
[377552372,1754441459795,-400.0,0.00035616,14]
[377552373,1754441459805,-400.0,0.00035616,14]
[377552374,1754441459815,-400.0,0.00035616,14]
[377552375,1754441459825,-1632.55,0.00035616,14]
[377552376,1754441459834,-2255.11,0.00035616,14]
[377552377,1754441459845,-1161.1,0.00035616,14]
[377552378,1754441459858,-400.33136951,0.00035616,14]
[377552379,1754441459867,-400.0,0.00035616,14]
[377552380,1754441459877,-1526.0,0.00035616,14]
[377552381,1754441459886,-1231.72,0.00035616,14]
[377552382,1754441459896,-1045.26,0.00035616,14]
[377552383,1754441459906,-481.26,0.00035616,14]
[377552384,1754441459916,-614.99,0.00035616,14]
[377552385,1754441459926,-848.82,0.00035616,14]
[377552386,1754441459936,-400.0,0.00035616,14]
[377552387,1754441459946,-400.0,0.00035616,14]
[377552388,1754441459955,-400.0,0.00035616,14]
[377552389,1754441459965,-400.0,0.00035616,14]
[377552390,1754441459974,-400.0,0.00035616,14]
[377552391,1754441459984,-400.0,0.00035616,14]
[377552392,1754441459993,-2603.49,0.00035616,14]
[377552393,1754441460003,-2749.27,0.00035616,14]
[377552394,1754441460013,-400.0,0.00035616,14]
[377552395,1754441460023,-400.0,0.00035616,14]
[377552396,1754441460034,-400.0,0.00035616,14]
[377552397,1754441460043,-1991.05,0.00035616,14]
[377552398,1754441460055,-400.0,0.00035616,14]
[377552399,1754441460065,-500.0,0.00035616,14]
[377552400,1754441460075,-500.0,0.00035616,14]
[377552401,1754441460085,-2646.64,0.00035616,14]
[377552402,1754441460095,-500.0,0.00035616,14]
[377552403,1754441460105,-1428.97,0.00035616,14]
[377552404,1754441460115,-500.0,0.00035616,14]
[377552405,1754441460125,-500.0,0.00035616,14]
[377552406,1754441460135,-2101.34,0.00035616,14]
[377552407,1754441460145,-400.0,0.00035616,14]
[377552408,1754441460155,-400.0,0.00035616,14]
[377552409,1754441460165,-500.0,0.00035616,14]
[377552410,1754441460175,-500.0,0.00035616,14]
[377552411,1754441460185,-400.0,0.00035616,14]
[377552412,1754441460195,-500.0,0.00035616,14]
[377552413,1754441460204,-500.0,0.00035616,14]
[377552414,1754441460213,-500.0,0.00035616,14]
[377552415,1754441460223,-1706.21,0.00035616,14]
[377552416,1754441460233,-500.0,0.00035616,14]
[377552417,1754441460242,-500.0,0.00035616,14]
[377552418,1754441460252,-400.0,0.00035616,14]
[377552419,1754441460262,-1917.12,0.00035616,14]
[377552420,1754441460271,-500.0,0.00035616,14]
[377552421,1754441460280,-500.0,0.00035616,14]
[377552422,1754441460290,-3088.66,0.00035616,14]
[377552423,1754441460301,-500.0,0.00035616,14]
[377552424,1754441460311,-861.26,0.00035616,14]
[377552425,1754441460321,-630.11,0.00035616,14]
[377552426,1754441460330,-500.0,0.00035616,14]
[377552427,1754441460339,-601.21,0.00035616,14]
[377552428,1754441460348,-1307.75,0.00035616,14]
[377552429,1754441460357,-400.0,0.00035616,14]
[377552430,1754441460367,-500.0,0.00035616,14]
[377552431,1754441460376,-500.0,0.00035616,14]
[377552432,1754441460385,-500.0,0.00035616,14]
[377552433,1754441460394,-500.0,0.00035616,14]
[377552434,1754441460404,-500.0,0.00035616,14]
[377552435,1754441460413,-636.49919447,0.00035616,14]
[377552436,1754441460422,-400.0,0.00035616,14]
[377552437,1754441460432,-400.0,0.00035616,14]
[377552438,1754441460441,-1202.47,0.00035616,14]
[377552439,1754441460451,-1202.47,0.00035616,14]
[377552440,1754441460459,-1202.47,0.00035616,14]
[377552441,1754441460469,-1202.47,0.00035616,14]
[377552442,1754441460478,-1202.47,0.00035616,14]
[377552443,1754441460487,-1202.47,0.00035616,14]
[377552444,1754441460498,-1202.47,0.00035616,14]
[377552445,1754441460508,-1202.47,0.00035616,14]
[377552446,1754441460518,-1202.47,0.00035616,14]
[377552447,1754441460528,-400.0,0.00035616,14]
[377552448,1754441460538,-400.0,0.00035616,14]
[377552449,1754441460548,-1202.47,0.00035616,14]
[377552450,1754441460558,-1202.47,0.00035616,14]
[377552451,1754441460567,-1202.47,0.00035616,14]
[377552452,1754441460578,-1202.47,0.00035616,14]
[377552453,1754441460588,-400.0,0.00035616,14]
[377552454,1754441460598,-577.39,0.00035616,14]
[377552455,1754441460615,-1202.47,0.00035616,14]
[377552456,1754441460625,-1202.47,0.00035616,14]
[377552457,1754441460635,-1815.96,0.00035616,14]
[377552458,1754441460647,-1202.47,0.00035616,14]
[377552459,1754441460658,-895.14,0.00035616,14]
[377552460,1754441460669,-1202.47,0.00035616,14]
[377552461,1754441460679,-1202.47,0.00035616,14]
[377552462,1754441460688,-623.46,0.00035616,14]
[377552463,1754441460698,-806.26,0.00035616,14]
[377552464,1754441460709,-1202.47,0.00035616,14]
[377552465,1754441460718,-1202.47,0.00035616,14]
[377552466,1754441460727,-1202.47,0.00035616,14]
[377552467,1754441460736,-1202.47,0.00035616,14]
[377552468,1754441460745,-1202.47,0.00035616,14]
[377552469,1754441460755,-460.7,0.00035616,14]
[377552470,1754441460764,-1202.69247855,0.00035616,14]
[377552471,1754441460774,-1943.08,0.00035616,14]
[377552472,1754441460785,-400.0,0.00035616,14]
[377552473,1754441460794,-1002.33,0.00035616,14]
[377552474,1754441460805,-1657.13,0.00035616,14]
[377552475,1754441460814,-528.55,0.00035616,14]
[377552476,1754441460823,-2363.22,0.00035616,14]
[377552477,1754441460837,-572.9,0.00035616,14]
[377552478,1754441460859,-400.0,0.00035616,14]
[377552479,1754441460872,-400.0,0.00035616,14]
[377552480,1754441460883,-2160.8,0.00035616,14]
[377552481,1754441460892,-406.6,0.00035616,14]
[377552482,1754441460902,-2911.64,0.00035616,14]
[377552483,1754441460912,-3643.68,0.00035616,14]
[377552484,1754441460924,-400.0,0.00035616,14]
[377552485,1754441460933,-1625.69,0.00035616,14]
[377552486,1754441460942,-1957.52,0.00035616,14]
[377552487,1754441460952,-632.07,0.00035616,14]
[377552488,1754441460964,-1030.16,0.00035616,14]
[377552489,1754441460974,-1038.48,0.00035616,14]
[377552490,1754441460984,-713.56,0.00035616,14]
[377552491,1754441460994,-1237.73,0.00035616,14]
[377552492,1754441461003,-1961.29,0.00035616,14]
[377552493,1754441461013,-1426.08,0.00035616,14]
[377552494,1754441461023,-400.0,0.00035616,14]
[377552495,1754441461033,-1938.19,0.00035616,14]
[377552496,1754441461042,-400.0,0.00035616,14]
[377552497,1754441461055,-400.0,0.00035616,14]
[377552498,1754441461064,-357.36495889,0.00035616,14]
[377552499,1754441461074,-400.0,0.00035616,14]
[377552500,1754441461085,-400.0,0.00035616,14]
[377552501,1754441461094,-400.0,0.00035616,14]
[377552502,1754441461104,-402.66,0.00035616,14]
[377552503,1754441461113,-400.0,0.00035616,14]
[377552504,1754441461123,-400.0,0.00035616,14]
[377552505,1754441461133,-2326.11,0.00035616,14]
[377552506,1754441461143,-3571.24,0.00035616,14]
[377552507,1754441461152,-742.0,0.00035616,14]
[377552508,1754441461162,-400.0,0.00035616,14]
[377552509,1754441461172,-2085.31,0.00035616,14]
[377552510,1754441461182,-1748.34,0.00035616,14]
[377552511,1754441461191,-400.0,0.00035616,14]
[377552512,1754441461200,-1890.62,0.00035616,14]
[377552513,1754441461210,-400.0,0.00035616,14]
[377552514,1754441461219,-439.39,0.00035616,14]
[377552515,1754441461228,-2107.23,0.00035616,14]
[377552516,1754441461238,-502.94,0.00035616,14]
[377552517,1754441461248,-1023.3,0.00035616,14]
[377552518,1754441461258,-2052.53,0.00035616,14]
[377552519,1754441461268,-400.0,0.00035616,14]
[377552520,1754441461277,-602.65,0.00035616,14]
[377552521,1754441461287,-400.0,0.00035616,14]
[377552522,1754441461297,-1394.47,0.00035616,14]
[377552523,1754441461308,-827.22,0.00035616,14]
[377552524,1754441461317,-400.0,0.00035616,14]
[377552525,1754441461326,-1245.53,0.00035616,14]
[377552526,1754441461336,-400.0,0.00035616,14]
[377552527,1754441461345,-400.0,0.00035616,14]
[377552528,1754441461355,-430.67,0.00035616,14]
[377552529,1754441461364,-400.0,0.00035616,14]
[377552530,1754441461374,-1904.14,0.00035616,14]
[377552531,1754441461383,-1861.75,0.00035616,14]
[377552532,1754441461405,-1014.31,0.00035616,14]
[377552533,1754441461417,-1956.4,0.00035616,14]
[377552534,1754441461427,-2247.55,0.00035616,14]
[377552535,1754441461437,-400.0,0.00035616,14]
[377552536,1754441461447,-1914.77,0.00035616,14]
[377552537,1754441461456,-1722.79,0.00035616,14]
[377552538,1754441461466,-549.83,0.00035616,14]
[377552539,1754441461476,-400.0,0.00035616,14]
[377552540,1754441461486,-404.04,0.00035616,14]
[377552541,1754441461496,-400.0,0.00035616,14]
[377552542,1754441461507,-435.48,0.00035616,14]
[377552543,1754441461517,-2913.9,0.00035616,14]
[377552544,1754441461527,-1121.88,0.00035616,14]
[377552545,1754441461537,-400.0,0.00035616,14]
[377552546,1754441461546,-2715.55,0.00035616,14]
[377552547,1754441461557,-2248.39,0.00035616,14]
[377552548,1754441461567,-1514.45,0.00035616,14]
[377552549,1754441461578,-2748.9,0.00035616,14]
[377552550,1754441461590,-817.07,0.00035616,14]
[377552551,1754441461599,-1449.42,0.00035616,14]
[377552552,1754441461609,-12660.55,0.00035616,14]
[377552553,1754441461620,-1621.38,0.00035616,14]
[377552554,1754441461631,-400.0,0.00035616,2]
[377552555,1754441461641,-5031.8,0.00035616,14]
[377552556,1754441461652,-400.0,0.00035616,14]
[377552557,1754441461662,-1706.84,0.00035616,14]
[377552558,1754441461672,-2014.83,0.00035616,14]
[377552559,1754441461682,-456.83,0.00035616,14]
[377552560,1754441461692,-968.48,0.00035616,14]
[377552561,1754441461702,-1000.23,0.00035616,14]
[377552562,1754441461711,-1585.71,0.00035616,14]
[377552563,1754441461722,-899.01,0.00035616,14]
[377552564,1754441461731,-448.92618125,0.00035616,14]
[377552565,1754441461741,-400.0,0.00035616,14]
[377552566,1754441461752,-400.0,0.00035616,14]
[377552567,1754441461764,-400.0,0.00035616,14]
[377552568,1754441461774,-400.0,0.00035616,14]
[377552569,1754441461785,-1532.07,0.00035616,14]
[377552570,1754441461795,-400.0,0.00035616,14]
[377552571,1754441461806,-400.0,0.00035616,14]
[377552572,1754441461816,-400.0,0.00035616,14]
[377552573,1754441461827,-2636.96,0.00035616,14]
[377552574,1754441461837,-590.91,0.00035616,14]
[377552575,1754441461853,-792.45,0.00035616,14]
[377552576,1754441461864,-1172.64,0.00035616,14]
[377552577,1754441461875,-1959.05,0.00035616,14]
[377552578,1754441461886,-3803.38,0.00035616,14]
[377552579,1754441461897,-400.0,0.00035616,14]
[377552580,1754441461908,-400.0,0.00035616,14]
[377552581,1754441461921,-478.79,0.00035616,14]
[377552582,1754441461932,-1632.7,0.00035616,14]
[377552583,1754441461943,-1629.83,0.00035616,14]
[377552584,1754441461956,-1431.63,0.00035616,14]
[377552585,1754441461965,-400.0,0.00035616,14]
[377552586,1754441461975,-400.0,0.00035616,14]
[377552587,1754441461986,-4205.53,0.00035616,14]
[377552588,1754441461997,-1973.77,0.00035616,14]
[377552589,1754441462008,-400.0,0.00035616,14]
[377552590,1754441462017,-1566.15,0.00035616,14]
[377552591,1754441462028,-400.0,0.00035616,14]
[377552592,1754441462038,-400.0,0.00035616,14]
[377552593,1754441462048,-400.0,0.00035616,14]
[377552594,1754441462059,-400.0,0.00035616,14]
[377552595,1754441462068,-2127.91,0.00035616,14]
[377552596,1754441462078,-400.0,0.00035616,14]
[377552597,1754441462087,-400.0,0.00035616,14]
[377552598,1754441462098,-963.28,0.00035616,14]
[377552599,1754441462113,-734.5,0.00035616,14]
[377552600,1754441462123,-400.0,0.00035616,7]
[377552601,1754441462133,-442.1,0.00035616,14]
[377552602,1754441462142,-400.0,0.00035616,14]
[377552603,1754441462151,-1059.75,0.00035616,14]
[377552604,1754441462160,-2598.62,0.00035616,14]
[377552605,1754441462169,-1000.0,0.00035616,14]
[377552606,1754441462179,-2705.93,0.00035616,14]
[377552607,1754441462188,-2228.25,0.00035616,14]
[377552608,1754441462198,-400.0,0.00035616,14]
[377552609,1754441462209,-1000.0,0.00035616,30]
[377552610,1754441462219,-530.05,0.00035616,14]
[377552611,1754441462230,-530.05,0.00035616,14]
[377552612,1754441462241,-674.04,0.00035616,14]
[377552613,1754441462251,-530.05,0.00035616,14]
[377552614,1754441462261,-400.0,0.00035616,14]
[377552615,1754441462270,-530.05,0.00035616,14]
[377552616,1754441462280,-416.66,0.00035616,14]
[377552617,1754441462291,-500.0,0.00035616,30]
[377552618,1754441462302,-530.05,0.00035616,14]
[377552619,1754441462312,-530.05,0.00035616,14]
[377552620,1754441462322,-530.05,0.00035616,14]
[377552621,1754441462331,-400.0,0.00035616,14]
[377552622,1754441462342,-530.05,0.00035616,14]
[377552623,1754441462353,-400.0,0.00035616,14]
[377552624,1754441462364,-530.05,0.00035616,14]
[377552625,1754441462374,-530.05,0.00035616,14]
[377552626,1754441462385,-2529.23,0.00035616,14]
[377552627,1754441462396,-530.05,0.00035616,14]
[377552628,1754441462406,-400.0,0.00035616,14]
[377552629,1754441462417,-530.05,0.00035616,14]
[377552630,1754441462428,-418.18,0.00035616,14]
[377552631,1754441462442,-530.05,0.00035616,14]
[377552632,1754441462454,-594.47,0.00035616,14]
[377552633,1754441462466,-530.05,0.00035616,14]
[377552634,1754441462477,-487.48,0.00035616,14]
[377552635,1754441462487,-530.05,0.00035616,14]
[377552636,1754441462499,-1448.73,0.00035616,14]
[377552637,1754441462510,-1672.24,0.00035616,14]
[377552638,1754441462521,-1955.09,0.00035616,14]
[377552639,1754441462531,-530.05,0.00035616,14]
[377552640,1754441462540,-3608.72,0.00035616,14]
[377552641,1754441462550,-530.05,0.00035616,14]
[377552642,1754441462562,-400.0,0.00035616,14]
[377552643,1754441462573,-530.05,0.00035616,14]
[377552644,1754441462584,-1885.37,0.00035616,14]
[377552645,1754441462595,-530.05,0.00035616,14]
[377552646,1754441462606,-2012.62,0.00035616,14]
[377552647,1754441462620,-530.05,0.00035616,14]
[377552648,1754441462631,-530.05,0.00035616,14]
[377552649,1754441462641,-1120.59,0.00035616,14]
[377552650,1754441462651,-400.0,0.00035616,14]
[377552651,1754441462662,-530.05,0.00035616,14]
[377552652,1754441462672,-530.05,0.00035616,14]
[377552653,1754441462682,-400.0,0.00035616,14]
[377552654,1754441462693,-530.27623702,0.00035616,14]
[377552655,1754441462704,-400.0,0.00035616,14]
[377552656,1754441462715,-400.0,0.00035616,14]
[377552657,1754441462725,-976.76,0.00035616,14]
[377552658,1754441462736,-2262.39,0.00035616,14]
[377552659,1754441462746,-400.0,0.00035616,14]
[377552660,1754441462756,-697.85,0.00035616,14]
[377552661,1754441462766,-400.0,0.00035616,14]
[377552662,1754441462777,-1752.12,0.00035616,14]
[377552663,1754441462787,-400.0,0.00035616,14]
[377552664,1754441462798,-400.0,0.00035616,14]
[377552665,1754441462811,-400.0,0.00035616,14]
[377552666,1754441462822,-400.0,0.00035616,14]
[377552667,1754441462832,-2601.56,0.00035616,14]
[377552668,1754441462843,-400.0,0.00035616,14]
[377552669,1754441462860,-1184.93,0.00035616,14]
[377552670,1754441462871,-400.0,0.00035616,14]
[377552671,1754441462881,-1089.26,0.00035616,14]
[377552672,1754441462893,-400.0,0.00035616,14]
[377552673,1754441462904,-1143.49,0.00035616,14]
[377552674,1754441462914,-1546.02,0.00035616,14]
[377552675,1754441462924,-400.0,0.00035616,14]
[377552676,1754441462935,-400.0,0.00035616,14]
[377552677,1754441462945,-2120.77,0.00035616,14]
[377552678,1754441462956,-1968.31,0.00035616,14]
[377552679,1754441462967,-400.0,0.00035616,14]
[377552680,1754441462980,-1973.83,0.00035616,14]